Workbook

Sheet Online (hidden)

Sheet _ (hidden)
I3: Ouverture en cours, merci de patienter quelques instants…
I4: Ce fichier vous est offert par Méthodes BTP
I5: http://www.methodesbtp.com
E8: Vous patientez depuis plus de 30 secondes et rien ne se passe ?
F9: 1. Allez dans les options Excel et activez les Macros. Pour Excel 2003 : installez le package OWC11.exe
F10: 2. Placez les options de sécurité au plus faible et indiquez que vous faites confiance au projet Visual Basic
F11: 3. Fermez complètement toutes les instances d'Excel
F12: 4. Ré-ouvrez ce fichier

Sheet Hypothèses et résultats
A1: METHODES BTP - CALCUL DE SATURATION DE GRUE
A2: DATE :
A3: CHANTIER :
A5: QUANTITES DU NIVEAU COMPLET | B5: Quantité | C5: Unité | E5: PARAMETRES FIXES
A6: Nb quotidien de banches | B6: 12 | C6: U | E6: Durée du cycle de réalisation du niveau : | G6: 5
A7: Nb d'angles sur chantier | B7: 2 | C7: U | E7: Amplitude journalière souhaitée | G7: 7.5 | H7: =((G7-ROUNDDOWN(G7,0))*0.6+ROUNDDOWN(G7,0))*100 -> 730
A8: Linéaire de voiles préfa forains | B8: 2 | C8: ml | E8: Contenance de la benne : | G8: 1.5
A9: Nb de voiles préfa ext (béton blanc) | C9: U | E9: Niveaux entre stock et zone de travail | G9: 3
A10: Linéaire de voiles de façade (hors préfa) | C10: ml
A11: Nb de mannequins dans voiles de façade | B11: 3 | C11: U | E11: PARAMETRES PONDERATEURS | G11: Niveau | H11: Coefficient
A12: Linéaire d'autres voiles | B12: 3 | C12: ml | E12: Nb de grues | G12: 1 | H12: =10%*(G12-1) -> 0
A13: Nb de mannequins d'autres voiles | B13: 3 | C13: U | E13: Performance grue | G13: 0 | H13: =3%*(G13-1) -> -0.03
A14: Epaisseur moyenne des voiles | B14: 0,2 | C14: m | E14: Longueur de la flèche | G14: 0 | H14: =1%*G14 -> 0
A15: Hauteur du niveau | B15: 2,7 | C15: m | E15: Interférence de grue | G15: 0 | H15: =5%*G15 -> 0
A16: Linéaire de voiles contreventés | B16: 20 | C16: ml | E16: Visibilité du grutier | G16: 0 | H16: =2%*G16 -> 0
A17: Hauteur des voiles contreventés | B17: 2,7 | C17: m | E17: Zone de déchargement | G17: 0 | H17: =2%*G17 -> 0
A18: Nb de mannequins ds voiles contreventés | B18: 5 | C18: U | E18: Zone de stockage | G18: 0 | H18: =2%*G18 -> 0 | X18: Saturation par grue : | Z18: =ROUND(SUM(V53:V128)/(G12*G6),2) -> 5.98 | AA18: =((Z18-ROUNDDOWN(Z18,0))*0.6+ROUNDDOWN(Z18,0))*100 -> 558.8
A19: Nb de console de sécurité | B19: 8 | C19: U | E19: Interdiction de survol | G19: 0 | H19: =2%*G19 -> 0
A20: Nb de passerelles de sécurité | B20: 4 | C20: U | E20: Difficulté d'approvisionnement | G20: 0 | H20: =2%*G20 -> 0 | X20: Nb de jours pour le cycle : | Z20: =G6 -> 5 | AB20: =IF(ROUNDUP(SUM(V53:V128)/(G12*G7),0)>4,ROUNDUP(SUM(V53:V128)/(G12*G7),0),5) -> 5
A21: Nb de poteaux tradi | B21: 3 | C21: U | E21: Approvist des sous-traitants | G21: 0 | H21: =50%*G21 -> 0
A22: Nb de poteaux préfa forrains | B22: 2 | C22: U | E22: 1 cycle 2 bâtiments distincts | G22: 0 | H22: =2%*G22 -> 0
A23: Nb de poteaux préfa extérieurs | C23: U | E23: Complexité de la structure | G23: 0 | H23: =3%*G23 -> 0
A24: Volume par poteau | B24: 0,2 | C24: m3
A25: Nb d'outils de poteau | C25: U | E25: CHARGE DE GRUE | H25: =Z18 -> 5.98
A26: Nb de poutres tradi | B26: 4 | C26: U | E26: Verticaux : | G26: =AF49/G6 -> 3.780939629 | H26: =G26 -> 3.780939629
A27: Nb de poutres préfa foraines | B27: 2 | C27: U | E27: Horizontaux : | G27: =X33/G6 -> 0.4759499452 | H27: =G27 -> 0.4759499452
A28: Nb de poutres préfa extérieures | C28: U | E28: Divers : | G28: =Y33/G6 -> 1.726528735 | H28: =G28 -> 1.726528735 | Y28: =((AA28-ROUNDDOWN(AA28,0))*0.6+ROUNDDOWN(AA28,0))*100 -> 559.0050986 | AA28: =AB28/G6 -> 5.98341831 | AB28: =SUM(V53:V128)/G12 -> 29.91709155
A29: Volume par retombée de poutre | B29: 0,2 | C29: m3 | E29: =IF(G29<0,"Sur-utilisation de la grue :","Grue libre :") -> Grue libre : | G29: =G7-H25 -> 1.52 | H29: =IF(G29<0,0,G29) -> 1.52 | X29: 1 | Y29: 2 | Z29: 3 | AA29: 4 | AB29: 5 | AC29: 6 | AD29: 7
A30: Surface de plancher tradi | C30: m²
A31: Surface de plancher prédalle foraine | C31: m²
A32: Surface de plancher prédalle extérieure | C32: m² | X32: Horizontaux | Y32: Divers | Z32: Grue libre
A33: Nb de prédalles foraines | C33: U | X33: =SUM(V88:V113) -> 2.379749726 | Y33: =SUM(V119:V128) -> 8.632643676
A34: Nb de prédalles extérieures | B34: 8 | C34: U | X34: =X33*$Z$18/$G$6 -> 2.846180673 | Y34: =Y33*$Z$18/$G$6 -> 10.32464184 | Z34: =G7-H25 -> 1.52
A35: Surface de plancher dalle alvéolaire | C35: m²
A36: Nb de dalles alvéolaires | C36: U
A37: Surface de table | C37: m²
A38: Epaisseur totale des planchers | B38: 0,2 | C38: m
A39: Epaisseur moyenne des prédalles | B39: 0,2 | C39: m
A40: Ep. moyenne des dalles alvéolaires | C40: m
A41: Nb d'allèges préfa foraines | C41: U
A42: Nb d'allèges préfa extérieures | C42: U
A43: Volume par allège | C43: m3
A44: Nb d'outils de pose d'allège | C44: U
A45: Nb d'escaliers préfa | B45: 1 | C45: U
A46: Nb de cages d'ascenseur | B46: 1 | C46: U
A47: Nb de gaines préfa | C47: U | E47: Légende : | F47: Donnée utilisateur (tout le reste est calculé)
AF48: Verticaux
AF49: =SUM(V53:V87) -> 18.90469815
A50: 9 | B50: 10 | C50: 11 | D50: 12 | E50: 13 | G50: 14 | H50: 15 | I50: 16 | J50: 17 | K50: 18 | L50: 19 | M50: 20 | N50: 21 | O50: 22 | P50: 23 | Q50: 24 | R50: 25 | S50: 26 | T50: 27 | U50: 28 | AF50: =AF49*$Z$18/$G$6 -> 22.61001898
A51: RESULTATS DETAILLES | E51: Unités | F51: Quantité | G51: T.E mn | H51: T.E | I51: Coefficients pondérateurs relatifs aux caractéristiques du chantier | U51: Coef. | V51: Total
I52: Modèle de grue | J52: Longueur de la fflèche | K52: Nb de grues | L52: Interférence de grue | M52: Visibilité du grutier | N52: Zone de ddéchargement | O52: Zone de stockage | P52: Interdiction de ssurvol | Q52: Difficultés dd'approvisionnement | R52: Approvisionnement ddes sous-traitants | S52: 1 cycle avec 2 bbâtiments distincts | T52: Complexité de ll'architecture
B53: Manut de banches | E53: cp | F53: =(B6+2*B7)*G6*B10/(SUM(B10,B8,B12,B16)+0.0000000001) -> 0 | G53: =H53*60 -> 6.9 | H53: 0.115 | I53: =$H$13 -> -0.03 | J53: =$H$14 -> 0 | K53: =$H$12 -> 0 | L53: =$H$15 -> 0 | P53: =$H$19 -> 0 | S53: =$H$22 -> 0 | T53: =$H$23 -> 0 | U53: =1+SUM(I53:T53)*1.5 -> 0.955 | V53: =F53*H53*U53 -> 0 | W53: =V53*60 -> 0
B54: Manut de TS et autres aciers | E54: 11ml | F54: =B10/11 -> 0 | G54: 2.139508929 | H54: ='Bibliothèque T.E'!D13*(0.75*(G9*B15/(4*2.8))+0.25) -> 0.03565848214 | I54: -0.03 | J54: 0 | K54: 0 | L54: 0 | M54: =$H$16 -> 0 | O54: =$H$18 -> 0 | P54: =$H$19 -> 0 | Q54: =$H$20 -> 0 | U54: =1+SUM(I54:T54)*1.5 -> 0.955 | V54: 0 | W54: 0
B55: Manut mannequins | E55: 3U | F55: =B11/3 -> 1 | G55: 2.1 | H55: ='Bibliothèque T.E'!D14 -> 0.035 | I55: -0.03 | J55: 0 | K55: 0 | L55: 0 | O55: =$H$18 -> 0 | P55: =$H$19 -> 0 | Q55: =$H$20 -> 0 | S55: =$H$22 -> 0 | U55: 0.955 | V55: 0.033425 | W55: 2.0055
A56: Voiles de | B56: Fermeture de banches | E56: cp | F56: =50%*B6*G6*B10/(SUM(B10,B8,B12,B16)+0.0000000001) -> 0 | G56: 1.38 | H56: 0.023 | I56: -0.03 | J56: 0 | K56: 0 | L56: 0 | T56: =$H$23 -> 0 | U56: 0.955 | V56: 0 | W56: 0
A57: façade | B57: Coulage | E57: =G8 -> 1.5 | F57: =(B10*B14*B15-B11*B14*2.2)/E57 -> -0.88 | G57: 6.327053571 | H57: =($G$8*0.05+0.04)*(0.3*($G$9*$B$15)/(4*2.8)+0.7) -> 0.1054508929 | I57: -0.03 | J57: 0 | K57: 0 | L57: 0 | M57: =$H$16 -> 0 | P57: =$H$19 -> 0 | Q57: =$H$20 -> 0 | T57: =$H$23 -> 0 | U57: 0.955 | V57: -0.08862093036 | W57: -5.317255821
B58: Manut passerelles | E58: 1U | F58: =B20 -> 4 | G58: 7.2 | H58: 0.12 | I58: -0.03 | J58: 0 | K58: 0 | L58: 0 | S58: =$H$22 -> 0 | T58: =$H$23 -> 0 | U58: 0.955 | V58: 0.4584 | W58: 27.504
B59: Manut consoles | E59: 1U | F59: =B19 -> 8 | G59: 9 | H59: ='Bibliothèque T.E'!D33 -> 0.15 | I59: -0.03 | J59: 0 | K59: 0 | L59: 0 | S59: =$H$22 -> 0 | T59: =$H$23 -> 0 | U59: 0.955 | V59: 1.146 | W59: 68.76
B60: Manut de banches | E60: cp | F60: =(B6+2*B7)*G6*B8/(SUM(B10,B8,B12,B16)+0.0000000001) -> 6.4 | G60: 6.9 | H60: 0.115 | I60: -0.03 | J60: 0 | K60: 0 | L60: 0 | S60: =$H$22 -> 0 | T60: =$H$23 -> 0 | U60: 0.955 | V60: 0.70288 | W60: 42.1728
B61: Manut de TS et autres aciers | E61: 11ml | F61: =B8/11 -> 0.1818181818 | G61: 2.139508929 | H61: ='Bibliothèque T.E'!D13*(0.75*(G9*B15/(4*2.8))+0.25) -> 0.03565848214 | I61: -0.03 | J61: 0 | K61: 0 | L61: 0 | M61: =$H$16 -> 0 | O61: =$H$18 -> 0 | P61: =$H$19 -> 0 | Q61: =$H$20 -> 0 | U61: 0.955 | V61: 0.006191609172 | W61: 0.3714965503 | AG61: =($G$8*0.05+0.04)*((0.3*($G$9*$B$15)/(4*2.8))+0.7) -> 0.1054508929
A62: Voiles préfa | B62: Fermeture de banche | E62: cp | F62: =50%*B6*G6*B8/(SUM(B10,B8,B12,B16)+0.0000000001) -> 2.4 | G62: 1.38 | H62: 0.023 | I62: -0.03 | J62: 0 | K62: 0 | L62: 0 | T62: =$H$23 -> 0 | U62: 0.955 | V62: 0.052716 | W62: 3.16296
B63: Coulage | E63: =G8 -> 1.5 | F63: =(B8*B14*B15)/E63 -> 0.72 | G63: 6.9 | H63: =($G$8*0.05+0.04) -> 0.115 | I63: -0.03 | J63: 0 | K63: 0 | L63: 0 | M63: =$H$16 -> 0 | P63: =$H$19 -> 0 | Q63: =$H$20 -> 0 | T63: =$H$23 -> 0 | U63: 0.955 | V63: 0.079074 | W63: 4.74444
B64: Stockage de voile préfa | E64: cp | F64: =50%*B8/2+100%*B9 -> 0.5 | G64: 9 | H64: ='Bibliothèque T.E'!D34 -> 0.15 | I64: -0.03 | J64: 0 | K64: 0 | L64: 0 | O64: =$H$18 -> 0 | P64: =$H$19 -> 0 | U64: 0.955 | V64: 0.071625 | W64: 4.2975
B65: Mise en place de voile préfa | E65: cp | F65: =B8/2 -> 1 | G65: 10.72848214 | H65: ='Bibliothèque T.E'!D35*(0.3*($G$9*$B$15)/(4*2.8)+0.7) -> 0.1788080357 | I65: -0.03 | J65: 0 | K65: 0 | L65: 0 | P65: =$H$19 -> 0 | T65: =$H$23 -> 0 | U65: 0.955 | V65: 0.1707616741 | W65: 10.24570045
B66: Manut de banche intérieure | E66: cp | F66: =(B6+B7)*G6*B16/(SUM(B10,B8,B12,B16)+0.0000000001) -> 56 | G66: 4.98 | H66: 0.083 | I66: -0.03 | J66: 0 | K66: 0 | L66: 0 | S66: =$H$22 -> 0 | T66: =$H$23 -> 0 | U66: 0.955 | V66: 4.43884 | W66: 266.3304
B67: Manut de banche exterieure (stockage) | E67: cp | F67: =(B6)*G6*B16/(SUM(B10,B8,B12,B16)+0.0000000001) -> 48 | G67: 4.98 | H67: 0.083 | I67: -0.03 | J67: 0 | K67: 0 | L67: 0 | S67: =$H$22 -> 0 | T67: =$H$23 -> 0 | U67: 0.955 | V67: 3.80472 | W67: 228.2832
B68: Manut de TS et autres aciers | E68: 11ml | F68: =B16/11 -> 1.818181818 | G68: 2.139508929 | H68: ='Bibliothèque T.E'!D13*(0.75*(G9*B15/(4*2.8))+0.25) -> 0.03565848214 | I68: -0.03 | J68: 0 | K68: 0 | L68: 0 | M68: =$H$16 -> 0 | O68: =$H$18 -> 0 | P68: =$H$19 -> 0 | Q68: =$H$20 -> 0 | U68: 0.955 | V68: 0.06191609172 | W68: 3.714965503
A69: Voiles | B69: Manut mannequins | E69: 3U | F69: =B18/3 -> 1.666666667 | G69: 2.1 | H69: ='Bibliothèque T.E'!D14 -> 0.035 | I69: -0.03 | J69: 0 | K69: 0 | L69: 0 | O69: =$H$18 -> 0 | P69: =$H$19 -> 0 | S69: =$H$22 -> 0 | U69: 0.955 | V69: 0.05570833333 | W69: 3.3425
B70: Manut de banche extérieure (mise en place) | E70: cp | F70: =(B6+B7)*G6*B16/(SUM(B10,B8,B12,B16)+0.0000000001) -> 56 | G70: 4.98 | H70: 0.083 | I70: -0.03 | J70: 0 | K70: 0 | L70: 0 | T70: =$H$23 -> 0 | U70: 0.955 | V70: 4.43884 | W70: 266.3304
B71: Coulage | E71: =G8 -> 1.5 | F71: =(B16*B14*B17-B18*B14*2.2)/E71 -> 5.733333333 | G71: 6.327053571 | H71: =($G$8*0.05+0.04)*(0.3*($G$9*$B$15)/(4*2.8)+0.7) -> 0.1054508929 | I71: -0.03 | J71: 0 | K71: 0 | L71: 0 | M71: =$H$16 -> 0 | P71: =$H$19 -> 0 | Q71: =$H$20 -> 0 | T71: =$H$23 -> 0 | U71: 0.955 | V71: 0.5773787887 | W71: 34.64272732
B72: Manut des lests | E72: 1U | F72: =B16/1.2 -> 16.66666667 | G72: 2.52 | H72: ='Bibliothèque T.E'!D39 -> 0.042 | I72: -0.03 | J72: 0 | K72: 0 | L72: 0 | S72: =$H$22 -> 0 | T72: =$H$23 -> 0 | U72: 0.955 | V72: 0.6685 | W72: 40.11
B73: Manut de banche | E73: cp | F73: =(B6+2*B7)*G6*B12/(SUM(B10,B8,B12,B16)+0.0000000001) -> 9.6 | G73: 6.9 | H73: 0.115 | I73: -0.03 | J73: 0 | K73: 0 | L73: 0 | S73: =$H$22 -> 0 | T73: =$H$23 -> 0 | U73: 0.955 | V73: 1.05432 | W73: 63.2592
A74: Tous les autres | B74: Manut de TS et autres aciers | E74: 11ml | F74: =B12/11 -> 0.2727272727 | G74: 2.139508929 | H74: ='Bibliothèque T.E'!D13*(0.75*(G9*B15/(4*2.8))+0.25) -> 0.03565848214 | I74: -0.03 | J74: 0 | K74: 0 | L74: 0 | M74: =$H$16 -> 0 | O74: =$H$18 -> 0 | P74: =$H$19 -> 0 | Q74: =$H$20 -> 0 | U74: 0.955 | V74: 0.009287413758 | W74: 0.5572448255
A75: voiles et | B75: Manut mannequins | E75: 3U | F75: =B13/3 -> 1 | G75: 2.1 | H75: ='Bibliothèque T.E'!D14 -> 0.035 | I75: -0.03 | J75: 0 | K75: 0 | L75: 0 | O75: =$H$18 -> 0 | P75: =$H$19 -> 0 | Q75: =$H$20 -> 0 | S75: =$H$22 -> 0 | U75: 0.955 | V75: 0.033425 | W75: =V75*60 -> 2.0055
A76: divers | B76: Fermeture de banche | E76: cp | F76: =50%*(B6)*G6*B12/(SUM(B10,B8,B12,B16)+0.0000000001) -> 3.6 | H76: 0.023 | I76: -0.03 | J76: 0 | K76: 0 | L76: 0 | O76: =$H$18 -> 0 | P76: =$H$19 -> 0 | Q76: =$H$20 -> 0 | S76: =$H$22 -> 0 | U76: 0.955 | V76: 0.079074 | W76: =V76*60 -> 4.74444
B77: Coulage | E77: =G8 -> 1.5 | F77: =(B12*B14*(B15-0.2)-B13*B14*2.2)/E77 -> 0.12 | G77: =H77*60 -> 6.327053571 | H77: =($G$8*0.05+0.04)*(0.3*($G$9*$B$15)/(4*2.8)+0.7) -> 0.1054508929 | I77: -0.03 | J77: 0 | K77: 0 | L77: 0 | P77: =$H$19 -> 0 | Q77: =$H$20 -> 0 | S77: =$H$22 -> 0 | T77: =$H$23 -> 0 | U77: 0.955 | V77: 0.01208467232 | W77: 0.7250803393
B78: Manut coffrage | E78: U | F78: =B21 -> 3 | G78: 3.9 | H78: ='Bibliothèque T.E'!D40 -> 0.065 | I78: -0.03 | J78: 0 | K78: 0 | L78: 0 | S78: =$H$22 -> 0 | U78: 0.955 | V78: 0.186225 | W78: 11.1735 | AL78: RESULTATS
A79: Poteaux | B79: Manut aciers | E79: U | F79: =B21 -> 3 | G79: 2.947767857 | H79: ='Bibliothèque T.E'!D41*(0.75*(G9*B15/(4*2.8))+0.25) -> 0.04912946429 | I79: -0.03 | J79: 0 | K79: 0 | L79: 0 | M79: =$H$16 -> 0 | O79: =$H$18 -> 0 | P79: =$H$19 -> 0 | Q79: =$H$20 -> 0 | U79: 0.955 | V79: 0.1407559152 | W79: 8.445354911
B80: Fermeture de banche | E80: U | F80: =B21 -> 3 | G80: 1.38 | H80: =H62 -> 0.023 | I80: -0.03 | J80: 0 | K80: 0 | L80: 0 | U80: 0.955 | V80: 0.065895 | W80: 3.9537
B81: Coulage | E81: =G8 -> 1.5 | F81: =(B21*B24)/E81 -> 0.4 | G81: 6.327053571 | H81: =($G$8*0.05+0.04)*(0.3*($G$9*$B$15)/(4*2.8)+0.7) -> 0.1054508929 | I81: -0.03 | J81: 0 | K81: 0 | L81: 0 | M81: =$H$16 -> 0 | P81: =$H$19 -> 0 | Q81: =$H$20 -> 0 | U81: 0.955 | V81: 0.04028224107 | W81: 2.416934464
B82: Manut coffrage | E82: U | F82: =B22 -> 2 | G82: 3.9 | H82: ='Bibliothèque T.E'!D40 -> 0.065 | I82: -0.03 | J82: 0 | K82: 0 | L82: 0 | S82: =$H$22 -> 0 | U82: 0.955 | V82: 0.12415 | W82: 7.449
B83: Manut de HA | E83: U | F83: =B22 -> 2 | G83: 3.72 | H83: ='Bibliothèque T.E'!D41 -> 0.062 | I83: -0.03 | J83: 0 | K83: 0 | L83: 0 | M83: =$H$16 -> 0 | O83: =$H$18 -> 0 | P83: =$H$19 -> 0 | Q83: =$H$20 -> 0 | U83: 0.955 | V83: 0.11842 | W83: 7.1052
A84: Poteaux préfa | B84: Fermeture de banche | E84: U | F84: =B22 -> 2 | G84: 1.5 | H84: ='Bibliothèque T.E'!D42 -> 0.025 | I84: -0.03 | J84: 0 | K84: 0 | L84: 0 | U84: 0.955 | V84: 0.04775 | W84: 2.865
B85: Coulage | E85: =G8 -> 1.5 | F85: =(B22*B24)/E85 -> 0.2666666667 | G85: 3.84 | H85: ='Bibliothèque T.E'!D43 -> 0.064 | I85: =$H$13 -> -0.03 | J85: =$H$14 -> 0 | K85: =$H$12 -> 0 | L85: =$H$15 -> 0 | M85: =$H$16 -> 0 | P85: =$H$19 -> 0 | Q85: =$H$20 -> 0 | U85: 0.955 | V85: =F85*H85*U85 -> 0.01629866667 | W85: 0.97792
B86: Stockage de poteaux préfa | E86: U | F86: =10%*(B22+B23) -> 0.2 | G86: 4.2 | H86: ='Bibliothèque T.E'!D44 -> 0.07 | I86: -0.03 | J86: 0 | K86: 0 | L86: 0 | N86: =$H$17 -> 0 | O86: =$H$18 -> 0 | P86: =$H$19 -> 0 | U86: 0.955 | V86: 0.01337 | W86: 0.8022
B87: Mise en place de poteaux préfa | E87: U | F87: =B22+B23 -> 2 | G87: 8.953026316 | H87: ='Bibliothèque T.E'!D45*(0.3*($G$9*$B$15)/(6*3.8)+0.7) -> 0.1492171053 | I87: -0.03 | J87: 0 | K87: 0 | L87: 0 | P87: =$H$19 -> 0 | U87: 0.955 | V87: 0.2850046711 | W87: 17.10028026
B88: Manut de poutres (aciers) | E88: U | F88: =B26 -> 4 | G88: 10.2 | H88: ='Bibliothèque T.E'!D46 -> 0.17 | I88: -0.03 | J88: 0 | K88: 0 | L88: 0 | O88: =$H$18 -> 0 | P88: =$H$19 -> 0 | U88: 0.955 | V88: 0.6494 | W88: 38.964
A89: Poutres tradi | B89: Manut coffrage (compris étais) | E89: U | F89: =B26 -> 4 | G89: 5.7 | H89: ='Bibliothèque T.E'!D47 -> 0.095 | I89: -0.03 | J89: 0 | K89: 0 | L89: 0 | S89: =$H$22 -> 0 | U89: 0.955 | V89: 0.3629 | W89: 21.774
B90: Coulage | E90: =G8 -> 1.5 | F90: =B29*B26/E90 -> 0.5333333333 | G90: 6.84 | H90: =0.02*$G$8+0.084 -> 0.114 | I90: -0.03 | J90: 0 | K90: 0 | L90: 0 | P90: =$H$19 -> 0 | Q90: =$H$20 -> 0 | U90: 0.955 | V90: 0.058064 | W90: 3.48384
B91: Manut de HA | E91: U | F91: =B27 -> 2 | G91: 4.2 | H91: ='Bibliothèque T.E'!D49 -> 0.07 | I91: -0.03 | J91: 0 | K91: 0 | L91: 0 | M91: =$H$16 -> 0 | O91: =$H$18 -> 0 | P91: =$H$19 -> 0 | Q91: =$H$20 -> 0 | U91: 0.955 | V91: 0.1337 | W91: 8.022
A92: Poutres préfa | B92: Coulage | E92: =G8 -> 1.5 | F92: =B29*B27/E92 -> 0.2666666667 | G92: 6.84 | H92: =0.02*$G$8+0.084 -> 0.114 | I92: -0.03 | J92: 0 | K92: 0 | L92: 0 | M92: =$H$16 -> 0 | P92: =$H$19 -> 0 | Q92: =$H$20 -> 0 | U92: 0.955 | V92: 0.029032 | W92: 1.74192
A93: et divers | B93: Stockage de poutres préfa | E93: U | F93: =50%*B28+10%*B27 -> 0.2 | G93: 4.2 | H93: ='Bibliothèque T.E'!D50 -> 0.07 | I93: -0.03 | J93: 0 | K93: 0 | L93: 0 | N93: =$H$17 -> 0 | O93: =$H$18 -> 0 | P93: =$H$19 -> 0 | U93: 0.955 | V93: 0.01337 | W93: 0.8022
A94: horizontaux | B94: Manut des étais | E94: U | F94: =B27+B28 -> 2 | G94: 3.9 | H94: ='Bibliothèque T.E'!D53 -> 0.065 | I94: -0.03 | J94: 0 | K94: 0 | L94: 0 | S94: =$H$22 -> 0 | U94: 0.955 | V94: 0.12415 | W94: 7.449
B95: Mise en place de poutres préfa | E95: U | F95: =B28+B27 -> 2 | G95: 9.077946429 | H95: ='Bibliothèque T.E'!D54*(0.3*($G$9*$B$15)/(4*2.8)+0.7) -> 0.1512991071 | I95: -0.03 | J95: 0 | K95: 0 | L95: 0 | P95: =$H$19 -> 0 | U95: 0.955 | V95: 0.2889812946 | W95: 17.33887768
B96: Coulage des clavetages | E96: =G8 -> 1.5 | F96: =0.03*(B27+B28)/E96 -> 0.04 | G96: 6.84 | H96: =0.02*$G$8+0.084 -> 0.114 | I96: -0.03 | J96: 0 | K96: 0 | L96: 0 | M96: =$H$16 -> 0 | P96: =$H$19 -> 0 | Q96: =$H$20 -> 0 | U96: 0.955 | V96: 0.0043548 | W96: 0.261288
B97: Manut coffrage plancher (compris étais) | E97: 17m² | F97: =B30/17 -> 0 | G97: 4.5 | H97: ='Bibliothèque T.E'!D55 -> 0.075 | I97: -0.03 | J97: 0 | K97: 0 | L97: 0 | S97: =$H$22 -> 0 | U97: 0.955 | V97: 0 | W97: 0
A98: Planchers tradi | B98: Manut de TS et autres aciers (par lit) | E98: 40m² | F98: =2*(B30+B37)/40 -> 0 | G98: 3.54 | H98: ='Bibliothèque T.E'!D56 -> 0.059 | I98: -0.03 | J98: 0 | K98: 0 | L98: 0 | M98: =$H$16 -> 0 | O98: =$H$18 -> 0 | P98: =$H$19 -> 0 | Q98: =$H$20 -> 0 | U98: 0.955 | V98: 0 | W98: 0
B99: Coulage de plancher | E99: =G8 -> 1.5 | F99: =B30*B38/E99 -> 0 | G99: 2.950232143 | H99: =(0.026*$G$8+0.019)*((G9*B15*0.55)/(4*2.8)+0.45) -> 0.04917053571 | I99: -0.03 | J99: 0 | K99: 0 | L99: 0 | M99: =$H$16 -> 0 | P99: =$H$19 -> 0 | Q99: =$H$20 -> 0 | U99: 0.955 | V99: 0 | W99: 0
B100: Manut de TS et autres aciers | E100: 55m² | F100: =(B31)/55 -> 0 | G100: 2.805133929 | H100: ='Bibliothèque T.E'!D56*(0.75*(G9*B15/(4*2.8))+0.25) -> 0.04675223214 | I100: -0.03 | J100: 0 | K100: 0 | L100: 0 | M100: =$H$16 -> 0 | O100: =$H$18 -> 0 | P100: =$H$19 -> 0 | Q100: =$H$20 -> 0 | U100: 0.955 | V100: 0 | W100: 0
B101: Manut divers doka et platelage | E101: 75m² | F101: =(B31+B32)/75 -> 0 | G101: 4.5 | H101: ='Bibliothèque T.E'!D55 -> 0.075 | I101: -0.03 | J101: 0 | K101: 0 | L101: 0 | S101: =$H$22 -> 0 | U101: 0.955 | V101: 0 | W101: 0
B102: Coulage de prédalle | E102: =G8 -> 1.5 | F102: =B31*B39/E102 -> 0 | G102: 2.950232143 | H102: =(0.026*$G$8+0.019)*((G9*B15*0.55)/(4*2.8)+0.45) -> 0.04917053571 | I102: -0.03 | J102: 0 | K102: 0 | L102: 0 | M102: =$H$16 -> 0 | P102: =$H$19 -> 0 | Q102: =$H$20 -> 0 | U102: 0.955 | V102: 0 | W102: 0
A103: Planchers | B103: Stockage de prédalle | E103: U | F103: =10%*B34 -> 0.8 | G103: 5.4 | H103: ='Bibliothèque T.E'!D64 -> 0.09 | I103: -0.03 | J103: 0 | K103: 0 | L103: 0 | N103: =$H$17 -> 0 | O103: =$H$18 -> 0 | P103: =$H$19 -> 0 | Q103: =$H$20 -> 0 | S103: =$H$22 -> 0 | U103: 0.955 | V103: 0.06876 | W103: 4.1256
A104: prédalles | B104: Mise en place de prédalle | E104: U | F104: =B33+B34 -> 8 | G104: 5.081447368 | H104: ='Bibliothèque T.E'!D65*(0.3*($G$9*$B$15)/(6*3.8)+0.7) -> 0.08469078947 | I104: -0.03 | J104: 0 | K104: 0 | L104: 0 | M104: =$H$16 -> 0 | P104: =$H$19 -> 0 | T104: =$H$23 -> 0 | U104: 0.955 | V104: 0.6470376316 | W104: 38.82225789
B105: Manut étaiement | E105: 20m² | F105: =(B31+B32)/100 -> 0 | G105: 2.7 | H105: ='Bibliothèque T.E'!D66 -> 0.045 | I105: -0.03 | J105: 0 | K105: 0 | L105: 0 | S105: =$H$22 -> 0 | U105: 0.955 | V105: 0 | W105: 0
B106: Manut aciers pour dalle de compression | E106: 40m² | F106: =(B31+B32)/40 -> 0 | G106: 3.54 | H106: ='Bibliothèque T.E'!D56 -> 0.059 | I106: -0.03 | J106: 0 | K106: 0 | L106: 0 | M106: =$H$16 -> 0 | O106: =$H$18 -> 0 | P106: =$H$19 -> 0 | Q106: =$H$20 -> 0 | U106: 0.955 | V106: 0 | W106: 0
B107: Coulage de dalle de compression | E107: =G8 -> 1.5 | F107: =(B31+B32)*(B38-B39)/E107 -> 0 | G107: 2.950232143 | H107: =(0.026*$G$8+0.019)*((G9*B15*0.55)/(4*2.8)+0.45) -> 0.04917053571 | I107: -0.03 | J107: 0 | K107: 0 | L107: 0 | M107: =$H$16 -> 0 | P107: =$H$19 -> 0 | Q107: =$H$20 -> 0 | U107: 0.955 | V107: 0 | W107: 0
B108: Manut étaiement | E108: 20m² | F108: =B35/100 -> 0 | G108: 2.7 | H108: ='Bibliothèque T.E'!D66 -> 0.045 | I108: -0.03 | J108: 0 | K108: 0 | L108: 0 | S108: =$H$22 -> 0 | U108: 0.955 | V108: 0 | W108: 0
A109: Planchers | B109: Stockage de dalles alvéolaires | E109: U | F109: =10%*B36 -> 0 | G109: =H109*60 -> 5.4 | H109: ='Bibliothèque T.E'!D64 -> 0.09 | I109: -0.03 | J109: 0 | K109: 0 | L109: 0 | N109: =$H$17 -> 0 | O109: =$H$18 -> 0 | P109: =$H$19 -> 0 | Q109: =$H$20 -> 0 | S109: =$H$22 -> 0 | U109: 0.955 | V109: 0 | W109: 0
A110: Dalles | B110: Manut dalles alvéolaires | E110: U | F110: =B36 -> 0 | G110: 12.58263158 | H110: ='Bibliothèque T.E'!D69*(0.3*($G$9*$B$15)/(6*3.8)+0.7) -> 0.2097105263 | I110: -0.03 | J110: 0 | K110: 0 | L110: 0 | M110: =$H$16 -> 0 | O110: =$H$18 -> 0 | P110: 0 | Q110: 0 | T110: =$H$23 -> 0 | U110: 0.955 | V110: 0 | W110: 0
A111: Alvéolaires | B111: Coulage de clavetage des dalles | E111: U | F111: =10%*B36 -> 0 | G111: 2.950232143 | H111: =(0.026*$G$8+0.019)*((G9*B15*0.55)/(4*2.8)+0.45) -> 0.04917053571 | I111: -0.03 | J111: 0 | K111: 0 | L111: 0 | M111: 0 | P111: 0 | Q111: 0 | U111: 0.955 | V111: 0 | W111: 0
B112: Manut de TS et autres aciers | E112: 40m² | F112: =B35/40 -> 0 | G112: 2.805133929 | H112: ='Bibliothèque T.E'!D56*(0.75*(G9*B15/(4*2.8))+0.25) -> 0.04675223214 | I112: -0.03 | J112: 0 | K112: 0 | L112: 0 | M112: 0 | O112: =$H$18 -> 0 | P112: 0 | Q112: 0 | U112: 0.955 | V112: 0 | W112: 0
B113: Coulage de dalle de compression | E113: =G8 -> 1.5 | F113: =B35*(B38-B40)/E113 -> 0 | G113: 2.950232143 | H113: =(0.026*$G$8+0.019)*((G9*B15*0.55)/(4*2.8)+0.45) -> 0.04917053571 | I113: -0.03 | J113: 0 | K113: 0 | L113: 0 | M113: 0 | P113: 0 | Q113: 0 | U113: 0.955 | V113: 0 | W113: 0
B114: Manut ferraille | E114: U | F114: =B41 -> 0 | G114: 4.5 | H114: ='Bibliothèque T.E'!D88 -> 0.075 | I114: -0.03 | J114: 0 | K114: 0 | L114: 0 | M114: 0 | O114: =$H$18 -> 0 | P114: 0 | Q114: 0 | U114: 0.955 | V114: 0 | W114: 0
B115: Coulage de l'allège | E115: =G8 -> 1.5 | F115: =B41*B43/E115 -> 0 | G115: 6.9 | H115: =($G$8*0.05+0.04) -> 0.115 | I115: -0.03 | J115: 0 | K115: 0 | L115: 0 | M115: 0 | P115: 0 | Q115: 0 | U115: 0.955 | V115: 0 | W115: 0
A116: Allège préfa | B116: Stockage de l'allège | E116: U | F116: =10%*B41+50%*B42 -> 0 | G116: 4.5 | H116: ='Bibliothèque T.E'!D86 -> 0.075 | I116: -0.03 | J116: 0 | K116: 0 | L116: 0 | N116: =$H$17 -> 0 | O116: =$H$18 -> 0 | P116: 0 | Q116: 0 | S116: =$H$22 -> 0 | U116: 0.955 | V116: 0 | W116: 0
B117: Manut de l'outil de pose d'allège | E117: U | F117: =B44 -> 0 | G117: 15 | H117: ='Bibliothèque T.E'!D87 -> 0.25 | I117: =$H$13 -> -0.03 | J117: =$H$14 -> 0 | K117: =$H$12 -> 0 | L117: =$H$15 -> 0 | S117: =$H$22 -> 0 | T117: =$H$23 -> 0 | U117: 0.955 | V117: =F117*H117*U117 -> 0 | W117: 0
B118: Mise en place de l'allège | E118: U | F118: =B41+B42 -> 0 | G118: 8.362714286 | H118: ='Bibliothèque T.E'!D89*(0.3*($G$9*$B$15)/(4*2.8)+0.7) -> 0.1393785714 | I118: -0.03 | J118: 0 | K118: 0 | L118: 0 | P118: =$H$19 -> 0 | T118: =$H$23 -> 0 | U118: =1+SUM(I118:T118)*1.5 -> 0.955 | V118: 0 | W118: =V118*60 -> 0
B119: Manut escalier préfa | E119: U | F119: =B45 -> 1 | G119: 17.7 | H119: ='Bibliothèque T.E'!D90 -> 0.295 | I119: -0.03 | J119: 0 | K119: 0 | L119: 0 | M119: =$H$16 -> 0 | O119: =$H$18 -> 0 | P119: 0 | Q119: =$H$20 -> 0 | U119: 0.955 | V119: 0.281725 | W119: 16.9035
A120: Autres préfa | B120: Plateforme escalier | E120: U | F120: =B45 -> 1 | G120: 9.36 | H120: ='Bibliothèque T.E'!D92 -> 0.156 | I120: -0.03 | J120: 0 | K120: 0 | L120: 0 | P120: 0 | S120: =$H$22 -> 0 | U120: 0.955 | V120: 0.14898 | W120: 8.9388
B121: Manut de podium d'ascenseur | E121: U | F121: =B46 -> 1 | G121: 9.72 | H121: ='Bibliothèque T.E'!D93 -> 0.162 | I121: -0.03 | J121: 0 | K121: 0 | L121: 0 | P121: 0 | U121: 0.955 | V121: 0.15471 | W121: 9.2826
B122: Manut de gaines préfa | E122: U | F122: =B47 -> 0 | G122: 9.9 | H122: ='Bibliothèque T.E'!D95 -> 0.165 | I122: -0.03 | J122: 0 | K122: 0 | L122: 0 | P122: 0 | U122: 0.955 | V122: 0 | W122: 0
B123: Manut divers matériels et matériaux | E123: cp | F123: =4*G6 -> 20 | G123: 5.943080357 | H123: ='Bibliothèque T.E'!D103*(0.75*(G9*B15/(4*2.8))+0.25) -> 0.09905133929 | I123: -0.03 | J123: 0 | K123: 0 | L123: 0 | M123: =$H$16 -> 0 | O123: =$H$18 -> 0 | P123: 0 | Q123: =$H$20 -> 0 | U123: 0.955 | V123: 1.89188058 | W123: 113.5128348
B124: Déchargements divers | E124: cp | F124: =G6 -> 5 | G124: 2.1 | H124: ='Bibliothèque T.E'!D104 -> 0.035 | I124: -0.03 | J124: 0 | K124: 0 | L124: 0 | M124: =$H$16 -> 0 | N124: =$H$17 -> 0 | O124: =$H$18 -> 0 | P124: 0 | U124: 0.955 | V124: 0.167125 | W124: 10.0275
A125: Divers | B125: Manut de benne à gravats | E125: cp | F125: =2.5*G6 -> 12.5 | G125: 7.5 | H125: ='Bibliothèque T.E'!D105 -> 0.125 | I125: -0.03 | J125: 0 | K125: 0 | L125: 0 | M125: =$H$16 -> 0 | P125: 0 | S125: =$H$22 -> 0 | U125: 0.955 | V125: 1.4921875 | W125: 89.53125
B126: Approvisionnement des sous-traitants | E126: cp | F126: =3*G6 -> 15 | G126: 5.7 | H126: ='Bibliothèque T.E'!D108 -> 0.095 | I126: -0.03 | J126: 0 | K126: 0 | L126: 0 | M126: =$H$16 -> 0 | N126: =$H$17 -> 0 | O126: =$H$18 -> 0 | P126: 0 | Q126: =$H$20 -> 0 | R126: =$H$21 -> 0 | U126: 0.955 | V126: 1.360875 | W126: 81.6525
B127: Elingage, désélingage palonnier | E127: U | F127: =3*G6 -> 15 | G127: 1.74 | H127: ='Bibliothèque T.E'!D109 -> 0.029 | I127: -0.03 | J127: 0 | K127: 0 | L127: 0 | S127: =$H$22 -> 0 | U127: 0.955 | V127: 0.415425 | W127: 24.9255
B128: Aléas 10% | E128: % | F128: =10%*SUM(V53:V127) -> 2.719735595 | G128: 60 | H128: 1 | U128: 1 | V128: 2.719735595 | W128: 163.1841357
V129: =SUM(V53:V128) -> 29.91709155 | W129: 1795.025493

Sheet Bibliothèque T.E
B1: Tâches élementaires | C1: Utilisés dans la saturation
C2: Unité | D2: T.E
A3: VOILES | B3: Manut de banche compas B96 dont la hauteur est inférieure à 3,45 | C3: cp | D3: 0.07
B4: Manut de banche compas B96 dont la hauteur est comprise entre 3,45m et 4,65m | C4: cp | D4: 0.115
B5: Manut de banche compas et non compas dont la hauteur est supérieure à 4,65m | C5: cp | D5: 0.113
B6: Manut de banche non compas B96 dont la hauteur est inférieure à 3,45m | C6: cp | D6: 0.06
B7: Manut de banche non compas B96 dont la hauteur est comprise entre 3,45m et 4,65m | C7: cp | D7: 0.083
B8: Manut de banche 2,85m compas B96 | C8: xxx | D8: xxx
B9: Manut de banche 2,85m compas autre que B96 | C9: xxx | D9: xxx
B10: Manut de spéciaux, banchettes | C10: xxx | D10: xxx
B11: Manut d'about | C11: xxx | D11: xxx
B12: Manut de banche d'angle 2,85m | C12: xxx | D12: xxx
B13: Manut de TS et autres ferrailles | C13: 11ml | D13: 0.045
B14: Manut mannequins | C14: 3U | D14: 0.035
B15: Manut réhausse pour allèges (par exemple) | C15: cp | D15: 0.065
B16: Fermeture de banche B96 hauteur inférieure à 3,45m | C16: cp | D16: 0.023
B17: Fermeture de banche B96 hauteur supérieure à 3,45m | C17: cp | D17: 0.038
B18: Fermeture de banche autre que B96 | C18: xxx | D18: xxx
B19: Coulage voiles, allèges et poteaux | C19: volume benne | D19: formule
B20: Coulage voiles, allèges et poteaux | C20: volume benne | D20: formule
B21: Coulage voiles au béton blanc | C21: volume benne | D21: formule
B22: Coulage voile banche 3,30m | C22: volume benne | D22: formule
B23: Coulage voile banche 2,85m | C23: volume benne | D23: formule
B24: Coulage poteau 2,85m | C24: volume benne | D24: formule
B25: Coulage voiles au béton blanc | C25: xxx | D25: xxx
B26: Coulage voile banche 3,30m | C26: volume benne | D26: formule
B27: Coulage voile banche 2,85m | C27: volume benne | D27: formule
B28: Coulage poteau 2,85m | C28: volume benne | D28: formule
B29: Mise en place ferraille linteau dans banche compas | C29: U | D29: 0.095
B30: Mise en place ferraille linteau dans banche non compas | C30: U | D30: 0.16
B31: Mise en place passerelle de circulation | C31: xxx | D31: xxx
B32: Manut passerelles de décoffrage | C32: xxx | D32: xxx
B33: Manut consoles | C33: 1U | D33: 0.15
B34: Stockage de voile préfa | C34: 1U | D34: 0.15
B35: Mise en place de voile préfa intérieur | C35: cp | D35: 0.195
B36: Mise en place façade (béton architectonique) | C36: xxx | D36: xxx
B37: Manut de banche non-compas 2,85m extérieur | C37: xxx | D37: xxx
B38: Manut de banche non-compas 2,85m intérieur | C38: xxx | D38: xxx
B39: Manut des lestes | C39: 1U | D39: 0.042
A40: Poteaux | B40: Manut coffrage poteaux | C40: U | D40: 0.065
B41: Manut ferrailles pour poteaux | C41: U | D41: 0.062
B42: Fermeture de banche | C42: U | D42: 0.025
B43: Manut coffrage poteaux préfa | C43: U | D43: 0.064
B44: Stockage de poteaux préfa | C44: U | D44: 0.07
B45: Mise en place de poteaux préfa | C45: U | D45: 0.185
A46: Poutres | B46: Manut de poutres (ferraille) | C46: U | D46: 0.17
B47: Manut coffrage (compris étais) poutre | C47: U | D47: 0.095
B48: Coulage poutre et clavetage poutre | C48: volume benne | D48: formule
B49: Manut ferrailles pour poutre préfa | C49: U | D49: 0.07
B50: Stockage de poutres préfa | C50: U | D50: 0.07
B51: Stockage de poutres préfa pincée | C51: xxx | D51: xxx
B52: Stockage de poutres préfa non pincée | C52: xxx | D52: xxx
B53: Manut des étais pour soutenir poutre prefa | C53: U | D53: 0.065
B54: Mise en place de poutres préfa | C54: U | D54: 0.165
A55: PLANCHERS | B55: Manut coffrage plancher tradi (compris étais) | C55: 17m² | D55: 0.075
B56: Manut de TS et autres ferrailles (par lit) pour plancher tradi et prédalles | C56: 40m² | D56: 0.059
B57: Coulage de plancher tradi et dalle de compression DAP et prédalles | C57: volume benne | D57: formule
B58: Appro matériel électricien et plomberie | C58: xxx | D58: xxx
B59: Manut panier étais de séchage | C59: xxx | D59: xxx
B60: Appro cadre réservation trémie | C60: xxx | D60: xxx
B61: Manut rives de dalle | C61: xxx | D61: xxx
B62: Manut table avec palonnier | C62: xxx | D62: xxx
B63: Manut table avec élingues électriques | C63: xxx | D63: xxx
B64: Stockage de prédalle et DAP | C64: 10% | D64: 0.09
B65: Mise en place de prédalles | C65: U | D65: 0.105
B66: Manut tour étaiement pour prédalles et DAP | C66: 20m² | D66: 0.045
B67: Manut ferrailles pour dalle de compression DAP et prédalles | C67: 40m² | D67: 0.055
B68: Coulage prédalles foraines | C68: xxx | D68: xxx
B69: Manut dalles alvéolaires | C69: U | D69: 0.26
B70: Coulage de clavetage des dalles | C70: volume benne | D70: formule
A71: Balcons | B71: Manut étaiement (compris CP et rive) | C71: xxx | D71: xxx
B72: Manut de TS et autres ferrailles | C72: xxx | D72: xxx
B73: Coulage balcon tradi, prédalle et dalle de compression | C73: xxx | D73: xxx
B74: Manut de TS et autres ferrailles | C74: xxx | D74: xxx
B75: Stockage de prédalle | C75: xxx | D75: xxx
B76: Mise en place de prédalle | C76: xxx | D76: xxx
B77: Manut étaiement | C77: xxx | D77: xxx
B78: Manut ferrailles pour dalle de compression | C78: xxx | D78: xxx
B79: Manut ferraille | C79: xxx | D79: xxx
B80: Coulage des garde-corps | C80: xxx | D80: xxx
B81: Stockage des garde-corps | C81: xxx | D81: xxx
B82: Manut de l'outil de pose de garde-corps | C82: xxx | D82: xxx
B83: Mise en place des garde-corps préfa | C83: xxx | D83: xxx
B84: Mise en place dalle préfa de balcon (béton architectonique) | C84: xxx | D84: xxx
B85: Mise en place balcon préfa avec garde corps intégrés | C85: xxx | D85: xxx
A86: Divers préfa | B86: Stockage de l'allège | C86: U | D86: 0.075
B87: Manut de l'outil de pose d'allège | C87: U | D87: 0.25
B88: Manut ferraille allège | C88: U | D88: 0.075
B89: Mise en place de l'allège | C89: U | D89: 0.152
B90: Manut escalier préfa | C90: U | D90: 0.295
B91: Manut 1/2 cage circulaire | C91: U | D91: 0.127
B92: Plateforme escalier | C92: U | D92: 0.156
B93: Manut de podium d'ascenseur | C93: U | D93: 0.162
B94: Stockage divers éléments préfas (à 100%) | C94: xxx | D94: xxx
B95: Manut de gaines préfa | C95: U | D95: 0.165
A96: Sécurité et garde corps | B96: Mise en place filets rob's | C96: xxx | D96: xxx
B97: Manut coffrage garde-corps tradi | C97: xxx | D97: xxx
B98: Appro ferraillage garde corps préfa (par 3 unités) | C98: xxx | D98: xxx
B99: Manut platelage sur tiges | C99: xxx | D99: xxx
B100: Mise en place garde corps préfa béton gris | C100: xxx | D100: xxx
B101: Mise en place garde corps préfa béton architectonique | C101: xxx | D101: xxx
B102: Coulage garde-corps | C102: xxx | D102: xxx
A103: Divers | B103: Manut divers matériels et matériaux | C103: cp | D103: 0.125
B104: Déchargements divers | C104: cp | D104: 0.035
B105: Manut de benne à gravats | C105: cp | D105: 0.125
B106: Appro divers maçonnerie | C106: xxx | D106: xxx
B107: Approvisionnement des sous-traitants | C107: xxx | D107: xxx
B108: Approvisionnement des sous-traitants | C108: U | D108: 0.095
B109: Elingage, désélingage palonnier | C109: U | D109: 0.029
